[Event "XTX Markets London Masters 2024"]
[Site "London"]
[Date "2024.11.29"]
[Round "1.7"]
[White "Fodor, Tamas Jr."]
[Black "Gallana, Marco"]
[Result "1/2-1/2"]
[ECO "D87"]
[WhiteElo "2518"]
[BlackElo "2216"]
[Annotator "TA"]
[PlyCount "235"]
[EventDate "2024.11.28"]
[EventType "swiss"]
[EventCountry "ENG"]
[SourceTitle "playchess.com"]
[Source "ChessBase"]
[SourceQuality "1"]
[TimeControl "40/5400+30:1800+30"]

{[%evp 113,235,-207,-207,-207,-207,-207,-207,-207,-207,-200,-144,-207,-178,-178,-171,-178,-171,-171,-171,-171,-171,-171,-164,-164,-164,-156,-149,-149,-149,-142,-142,-142,-142,-142,-28,-28,0,-142,-142,-142,-142,-142,-142,-142,-142,-142,-142,-142,-142,-142,-142,-142,-142,-142,-142,-142,-142,-858,-142,-142,-142,-142,-142,-142,-142,-142,-142,-142,-142,-142,-142,-142,-141,-141,-141,-141,-141,-141,-141,-141,-141,-141,-141,-141,-141,-141,-141,-141,-141,-141,-141,-141,-141,-141,-141,-141,-141,-141,-141,-141,-141,-141,-141,-141,-141,-141,-13,-13,0,-141,-141,-141,-141,-141,-20,-20,-20,-28,-28,-28,-28,-28,0,0]} 1. d4 {[%emt 0:00:17]} Nf6 {[%emt 0:00:34]} 2. c4 {[%emt 0:00:07]} g6 {[%emt 0:01:09]} 3. Nc3 {[%emt 0:00:05]} d5 {[%emt 0:00:30]} 4. cxd5 {[%emt 0:00:08]} Nxd5 {[%emt 0:00:08]} 5. e4 {[%emt 0:00:04]} Nxc3 {[%emt 0:00:18]} 6. bxc3 {[%emt 0:00:06]} Bg7 {[%emt 0:00:15]} 7. Bc4 {[%emt 0:00:17]} c5 {[%emt 0:00:30]} 8. Ne2 {[%emt 0:00:08]} Nc6 {[%emt 0:00:32]} 9. Be3 {[%emt 0:00:24]} O-O {[%emt 0:00:27]} 10. O-O {[%emt 0:00:07]} b6 {[%emt 0:05:04]} 11. Rc1 {[%emt 0:01:50] 11.Qd2 is the modern continuation. D87: Exchange Grünfeld: Classical Line: Variations without ...cxd4.} Bb7 {[%emt 0:00:30]} 12. Bb5 {[%emt 0:01:50]} e6 {[%emt 0:07:55]} 13. dxc5 {[%emt 0:08:12]} Qc7 {[%emt 0:00:20]} 14. cxb6 $146 {[%emt 0:08:42]} ({Predecessor:} 14. Qd6 Qxd6 15. cxd6 Rfd8 16. Rfd1 Ne5 17. Ng3 Ng4 18. Bf4 e5 19. Bg5 f6 20. f3 fxg5 {1-0 Panda,S (2367)-Coenen,M (2331) Budapest SixDays Two Years GM-A 2024 (6)}) 14... axb6 {[%emt 0:00:15]} 15. a4 {[%emt 0:00:13]} Ne5 {[%emt 0:05:20]} 16. f3 {[%emt 0:05:25]} Nc4 {[%emt 0:00:53]} 17. Bd4 {[%emt 0:03:44]} e5 {[%emt 0:15:57]} 18. Bxc4 {[%emt 0:01:28]} Qxc4 {[%emt 0:00:28]} 19. Bxb6 {[%emt 0:00:06]} Rxa4 {[%emt 0:00:58]} 20. Rc2 {[%emt 0:06:43]} Rfa8 {[%emt 0:05:10]} 21. Qd2 {[%emt 0:17:08]} Bf8 {[%emt 0:04:35]} 22. Rb1 {[%emt 0:07:19]} Bc6 {[%emt 0:10:17]} 23. Be3 {[%emt 0:00:58]} Ra1 {[%emt 0:03:58]} 24. Rxa1 {[%emt 0:01:37]} Rxa1+ {[%emt 0:00:10]} 25. Kf2 {[%emt 0:00:31]} Ba4 {[%emt 0:05:41]} 26. Nc1 {[%emt 0:11:56]} Bxc2 {[%emt 0:08:00]} 27. Qxc2 {[%emt 0:00:05]} Ba3 {[%emt 0:02:54]} 28. Kg3 {[%emt 0:06:38]} Bxc1 {[%emt 0:04:16]} 29. Bxc1 {[%emt 0:00:04]} Ra2 {[%emt 0:00:10]} 30. Qb1 {[%emt 0:02:23]} Kg7 {[%emt 0:01:52]} 31. Qb8 {[%emt 0:02:49]} Qc5 {[%emt 0:04:49]} 32. Kh3 {[%emt 0:00:43]} Rc2 {[%emt 0:01:25]} 33. Bg5 {[%emt 0:01:57]} Rxc3 {[%emt 0:00:20]} 34. Qd8 {[%emt 0:03:47]} Qc8+ {[%emt 0:00:12]} 35. Qxc8 {[%emt 0:00:10]} Rxc8 {[%emt 0:00:06]} 36. g4 {[%emt 0:00:22]} f6 {[%emt 0:00:23]} 37. Bd2 {[%emt 0:00:05]} Rc2 {[%emt 0:06:17]} 38. Ba5 {[%emt 0:00:28]} Ra2 {[%emt 0:00:40]} 39. Bb6 {[%emt 0:00:06]} Kf7 {[%emt 0:01:25]} 40. Kg3 {[%emt 0:00:06]} g5 {[%emt 0:01:11]} 41. h4 {[%emt 0:30:21]} gxh4+ {[%emt 0:33:08]} 42. Kxh4 {[%emt 0:00:05]} Kg6 {[%emt 0:00:06]} 43. Bd8 {[%emt 0:02:13]} Ra3 {[%emt 0:00:28]} 44. Kg3 {[%emt 0:00:16]} Rd3 {[%emt 0:00:22]} 45. Be7 {[%emt 0:00:49]} Kg5 {[%emt 0:00:48]} 46. Bf8 {[%emt 0:02:19]} h5 {[%emt 0:00:23]} 47. gxh5 {[%emt 0:00:06]} Kxh5 {[%emt 0:00:05]} 48. Kf2 {[%emt 0:03:44]} Kg5 {[%emt 0:00:05]} 49. Kg2 {[%emt 0:00:22]} Rd8 {[%emt 0:01:04]} 50. Be7 {[%emt 0:00:22]} Rd7 {[%emt 0:01:18]} 51. Bf8 {[%emt 0:00:06]} Rh7 {[%emt 0:01:17]} 52. Kg3 {[%emt 0:00:21]} Rh8 {[%emt 0:00:16]} 53. Bc5 {[%emt 0:01:09]} Rg8 {[%emt 0:00:14]} 54. Be7 {[%emt 0:02:33]} Rg7 {[%emt 0:00:24]} 55. Bc5 {[%emt 0:01:04]} Kh5+ {[%emt 0:00:45]} 56. Kh3 {[%emt 0:01:59]} Rg5 {[%emt 0:00:54]} 57. Be3 {[%emt 0:00:08]} Rg8 {[%emt 0:00:10]} 58. Bc5 {[%emt 0:00:07]} Kh6 {[%emt 0:00:46]} 59. Be3+ {[%emt 0:00:00]} Kh7 {[%emt 0:00:00]} 60. Bf2 {[%emt 0:00:00]} Rg6 {[%emt 0:00:00]} 61. Bg3 {[%emt 0:00:00]} Kg7 {[%emt 0:00:00]} 62. Kg2 {[%emt 0:00:00]} (62. f4 $17 {might work better.}) 62... Kf7 {[%emt 0:00:00]} 63. Kf2 {[%emt 0:00:00]} Ke6 {[%emt 0:00:00]} 64. Bh4 {[%emt 0:00:00]} Kd6 {[%emt 0:00:00]} 65. Ke3 {[%emt 0:00:00]} Kc5 {[%emt 0:00:00]} 66. Kd3 {[%emt 0:00:00]} Kb5 {[%emt 0:00:00]} 67. Bf2 {[%emt 0:00:00]} Rg7 {[%emt 0:00:00]} 68. Bh4 {[%emt 0:00:00]} Rd7+ {[%emt 0:00:00]} 69. Ke3 {[%emt 0:00:00]} Rd6 {[%emt 0:00:00]} 70. Ke2 {[%emt 0:00:00]} Kc4 {[%emt 0:00:00]} 71. Ke3 {[%emt 0:00:00]} Kc3 {[%emt 0:00:00]} 72. Ke2 {[%emt 0:00:00]} Kc2 {[%emt 0:00:00]} 73. Be1 {[%emt 0:00:00]} Rd4 {[%emt 0:00:00]} (73... Re6 $17 74. Bb4 Re8) 74. Bh4 $1 $11 {[%emt 0:00:00]} Rd6 {[%emt 0:00:00]} (74... f5 $11 75. Bf6 Rd2+ (75... fxe4 76. Bxe5 Rd5 77. Bc7 $11) 76. Kf1 Rd3) 75. Be1 $1 $17 {[%emt 0:00:00]} Ra6 {[%emt 0:01:37]} 76. Bh4 {[%emt 0:00:00]} Kc3 {[%emt 0:00:39]} 77. Be1+ {[%emt 0:00:00]} Kc4 {[%emt 0:00:06]} 78. Bh4 {[%emt 0:00:00]} Kc5 {[%emt 0:00:34]} 79. Ke3 {[%emt 0:00:00]} Re6 {[%emt 0:00:23]} 80. Ke2 {[%emt 0:00:00]} Kd6 {[%emt 0:00:08]} 81. Be1 {[%emt 0:00:00]} Ke7 {[%emt 0:00:08]} 82. Bb4+ {[%emt 0:00:00]} Kf7 {[%emt 0:00:11]} 83. Kf2 {[%emt 0:00:00]} Kg6 {[%emt 0:00:12]} 84. Kg3 {[%emt 0:00:00]} Rb6 {[%emt 0:00:17]} 85. Be7 $2 {[%emt 0:00:00][%mdl 8192]} (85. Bc5 $17 Rc6 86. Bf2) 85... Rb3 $2 {[%emt 0:01:19]} (85... f5 $19 {has better winning chances. Strongly threatening ...fxe4.} 86. Bc5 Rb3) 86. Kg4 $17 {[%emt 0:00:00]} Rb1 {[%emt 0:01:01]} 87. Bc5 {[%emt 0:00:00]} Rc1 {[%emt 0:00:15]} 88. Bb6 {[%emt 0:00:00]} Rc4 {[%emt 0:00:08]} 89. Kg3 {[%emt 0:00:00]} f5 {[%emt 0:02:50]} 90. exf5+ {[%emt 0:00:00]} Kxf5 {[%emt 0:00:05]} 91. Be3 {[%emt 0:00:00]} Ke6 {[%emt 0:02:43]} 92. Kf2 {[%emt 0:00:00]} Kd5 {[%emt 0:00:09]} 93. Ke2 {[%emt 0:00:00]} Rc2+ {[%emt 0:01:06]} 94. Kd3 {[%emt 0:00:00]} Ra2 {[%emt 0:00:31]} 95. Bb6 {[%emt 0:00:00]} Ke6 {[%emt 0:00:54]} 96. Be3 {[%emt 0:00:00]} Kf5 {[%emt 0:00:11]} 97. Bc1 {[%emt 0:00:00]} Rf2 {[%emt 0:02:46]} 98. Ke3 {[%emt 0:00:00]} Rc2 {[%emt 0:00:00]} 99. Bd2 {[%emt 0:00:00]} Rc4 {[%emt 0:00:21]} 100. Kd3 {[%emt 0:00:00]} Rd4+ {[%emt 0:00:17]} 101. Ke3 {[%emt 0:00:00]} Ke6 {[%emt 0:00:09]} 102. Ke2 {[%emt 0:00:00]} Kd5 {[%emt 0:00:06]} 103. Be3 {[%emt 0:00:00]} Rh4 {[%emt 0:02:29]} 104. Kd3 {[%emt 0:00:00]} Rh3 {[%emt 0:00:20]} 105. Ke2 {[%emt 0:00:00]} Kc4 {[%emt 0:00:35]} 106. Bb6 {[%emt 0:00:00]} Rh6 {[%emt 0:00:26]} 107. Ba7 {[%emt 0:00:00]} Ra6 {[%emt 0:00:35]} 108. Bg1 {[%emt 0:00:00]} Ra2+ {[%emt 0:00:45]} 109. Ke3 {[%emt 0:00:00]} Kc3 {[%emt 0:00:52]} (109... Kd5 $17 110. Bf2 Ke6) 110. Bf2 {[%emt 0:00:12]} Kc4 {[%emt 0:01:02]} 111. Bg3 {[%emt 0:00:11]} (111. Bg1 $1 $11) 111... Kd5 $17 {[%emt 0:00:09]} 112. Be1 {[%emt 0:00:12]} Ra3+ {[%emt 0:00:36]} 113. Ke2 {[%emt 0:00:11]} e4 {[%emt 0:00:06]} (113... Ke6 $17 114. Bd2 Kd5) 114. fxe4+ $11 {[%emt 0:00:05]} Kxe4 {[%emt 0:00:04]} 115. Kf2 {[%emt 0:00:14]} Rf3+ {[%emt 0:00:10]} 116. Kg2 {[%emt 0:00:05]} Ke3 {[%emt 0:00:06]} 117. Bg3 {[%emt 0:00:07]} Rxg3+ {[%emt 0:00:25]} 118. Kxg3 {[%emt 0:00:04]} 1/2-1/2

[Event "XTX Markets London Masters 2024"]
[Site "London"]
[Date "2024.11.29"]
[Round "1.9"]
[White "Ghasi, Ameet K"]
[Black "Verma, Shlok"]
[Result "1-0"]
[ECO "D30"]
[WhiteElo "2503"]
[BlackElo "2191"]
[Annotator "TA"]
[PlyCount "65"]
[EventDate "2024.11.28"]
[EventType "swiss"]
[EventCountry "ENG"]
[SourceTitle "playchess.com"]
[Source "ChessBase"]
[SourceQuality "1"]
[TimeControl "40/5400+30:1800+30"]

{[%evp 14,65,16,21,33,23,35,20,8,0,37,19,27,10,3,-4,54,52,58,61,83,91,109,103,90,59,79,83,156,125,131,118,318,266,362,296,302,293,279,209,344,320,334,293,327,331,341,260,259,243,261,247,259,245]} 1. Nf3 {[%emt 0:02:16]} d5 {[%emt 0:00:15]} 2. c4 {[%emt 0:00:20]} e6 {[%emt 0:01:21]} 3. g3 {[%emt 0:01:04]} Nf6 {[%emt 0:00:39]} 4. Bg2 {[%emt 0:02:08]} Be7 {[%emt 0:10:05]} 5. O-O {[%emt 0:00:32]} O-O {[%emt 0:00:43]} 6. b3 {[%emt 0:03:04]} c5 {[%emt 0:02:04]} 7. cxd5 {[%emt 0:04:53]} exd5 {[%emt 0:03:44]} 8. d4 {[%emt 0:00:42]} cxd4 {[%emt 0:03:58]} 9. Nxd4 {[%emt 0:02:12]} Nc6 {[%emt 0:01:06]} 10. Nxc6 {[%emt 0:09:02]} bxc6 {[%emt 0:00:48][%cal Bb7c6,Bc6c5,Bc5c4][%mdl 32] The position is equal.} 11. Qc2 {[%emt 0:00:07]} Qb6 {[%emt 0:10:44]} 12. Nc3 {[%emt 0:04:00][%cal Bb1c3,Bc3e2,Be2f4][%mdl 32]} Be6 {[%emt 0:08:53]} 13. Bb2 {[%emt 0:20:16]} Rac8 {[%emt 0:15:15]} 14. Rac1 {[%emt 0:06:35]} Qb8 {[%emt 0:23:06]} (14... c5 $11) 15. e3 {[%emt 0:09:37]} c5 {[%emt 0:03:59]} 16. Ne2 {[%emt 0:00:56]} Rfd8 {[%emt 0:05:11]} 17. Nf4 {[%emt 0:01:31]} c4 {[%emt 0:00:59]} 18. Bd4 {[%emt 0:02:38]} Ba3 {[%emt 0:03:32]} 19. Rb1 {[%emt 0:00:48][%cal Bc1b1,Bb1b3,Bb3b7,Bb7c7,Bc7c6][%mdl 32] [#] Black must now prevent Nxe6.} (19. Rcd1 {simplifies} cxb3 20. Qxb3 Qxb3 21. axb3 Bd6 22. Bxf6 gxf6 23. Bxd5 Bxf4 24. Bxe6 fxe6 25. exf4 a5 26. Rxd8+ Rxd8 27. Rc1) 19... cxb3 {[%emt 0:00:23]} 20. Qd3 {[%emt 0:06:03]} Qc7 {[%emt 0:01:17]} ({Black should try} 20... Qd6) 21. Rxb3 {[%emt 0:01:26]} Be7 {[%emt 0:00:32][%cal Ba3e7,Be7c5,Bc5d6][%mdl 32]} 22. Rfb1 {[%emt 0:03:35] White has more active pieces.} Qa5 $2 {[%emt 0:01:48] Loses the game.} (22... Qc4 $16) 23. Rb7 $18 {[%emt 0:01:40][%csl LRa7,LRe7]} Rc7 {[%emt 0:00:27] [#]} 24. Bb6 $1 {[%emt 0:01:39][%mdl 512]} axb6 {[%emt 0:00:42]} 25. Rxc7 {[%emt 0:15:56]} Bc5 {[%emt 0:00:06]} 26. Qc2 {[%emt 0:00:00]} Ne8 {[%emt 0:00:55]} (26... Bg4 $142 27. h3 Bh5) 27. Nxe6 {[%emt 0:00:00]} fxe6 {[%emt 0:00:08]} 28. Rc6 {[%emt 0:00:00]} Nd6 {[%emt 0:00:13]} 29. Bh3 {[%emt 0:00:00]} Re8 {[%emt 0:01:23]} 30. Rxd6 {[%emt 0:00:00]} Bxd6 {[%emt 0:00:02]} 31. Qc6 {[%emt 0:00:00][%csl LRb6,LRd6,LRe8]} Rd8 {[%emt 0:00:04]} 32. Bxe6+ {[%emt 0:00:00]} Kh8 {[%emt 0:00:04]} 33. Qxb6 {[%emt 0:00:00] Weighted Error Value: White=0.16 (very precise) /Black=0.37.  Loses game:     	---       	Black=1      Mistake:       	---       	Black=3      Inaccurate:     	White=1     	Black=2      OK:         	White=13    	Black=9      Best:        	White=1     	Black=1} 1-0

[Event "XTX Markets London Masters 2024"]
[Site "London"]
[Date "2024.11.29"]
[Round "1.10"]
[White "Bin-Suhayl, Ieysaa"]
[Black "Harvey, Marcus R"]
[Result "0-1"]
[ECO "D02"]
[WhiteElo "2183"]
[BlackElo "2491"]
[Annotator "TA"]
[PlyCount "106"]
[EventDate "2024.11.28"]
[EventType "swiss"]
[EventCountry "ENG"]
[SourceTitle "playchess.com"]
[Source "ChessBase"]
[SourceQuality "1"]
[TimeControl "40/5400+30:1800+30"]

{[%evp 9,106,36,43,28,43,25,65,67,54,60,62,75,90,90,58,52,47,-7,-10,-22,-15,0,0,-15,0,0,0,0,28,23,20,16,19,22,33,0,0,0,0,-25,-29,-28,-37,-56,-62,-56,-54,-58,-37,-46,-52,-62,-67,-75,-55,-60,-68,-40,-25,-84,-43,-114,-111,-96,-66,-111,-118,-110,-110,-1173,-937,-5583,-3045,-29948,-29952,-29949,-29949,-29953,-29957,-29959,-29960,-29964,-29962,-29971,-29972,-29972,-29967,-29968,-29966,-29973,-29973,-29973,-29974,-29974,-29976,-29976,-29975,-29941,-12846]} 1. Nf3 {[%emt 0:00:05]} d5 {[%emt 0:08:54]} 2. d4 {[%emt 0:00:12]} Nf6 {[%emt 0:01:43]} 3. g3 {[%emt 0:03:14]} Nbd7 {[%emt 0:03:58]} 4. Bg2 {[%emt 0:14:00]} Nb6 {[%emt 0:00:15]} 5. O-O {[%emt 0:02:06]} Bf5 {[%emt 0:02:08]} 6. Ne5 {[%emt 0:01:57]} Nfd7 {[%emt 0:07:55]} 7. c4 {[%emt 0:03:59]} c6 {[%emt 0:09:51]} 8. cxd5 {[%emt 0:21:17] White is slightly better.} (8. Nxd7 {simplifies} Qxd7 9. c5 Nc8 10. Nd2) 8... cxd5 {[%emt 0:00:27]} 9. a4 {[%emt 0:08:16][%cal Ba2a4,Ba4a5][%mdl 32] aiming for a5.} Nxe5 {[%emt 0:00:20]} 10. dxe5 {[%emt 0:00:06]} e6 {[%emt 0:01:05]} 11. a5 {[%emt 0:01:02]} Nd7 {[%emt 0:05:15]} 12. Qa4 {[%emt 0:00:06] Hoping for Nc3.} Rc8 {[%emt 0:02:14]} 13. b3 {[%emt 0:15:58]} ({White should play} 13. Nc3 $14) 13... Be7 $11 {[%emt 0:08:14]} 14. e4 {[%emt 0:00:53]} Bxe4 {[%emt 0:01:44]} 15. Bxe4 {[%emt 0:00:05]} dxe4 {[%emt 0:00:03]} 16. Ba3 {[%emt 0:05:21]} O-O {[%emt 0:03:46] Threatens to win with ...Bxa3.} 17. Rd1 $1 {[%emt 0:01:19]} Rc7 {[%emt 0:04:11][%cal Oe4e3]} ({Much weaker is} 17... Bxa3 18. Nxa3 Rc7 19. Qxe4 $14) 18. Qxe4 {[%emt 0:14:04]} Nc5 {[%emt 0:01:59]} 19. Rxd8 {[%emt 0:00:18]} Nxe4 {[%emt 0:00:05]} 20. Bxe7 {[%emt 0:00:08]} Rxe7 {[%emt 0:00:45]} 21. Rd4 {[%emt 0:00:50]} Nc5 {[%emt 0:04:36]} 22. Rc4 {[%emt 0:00:18]} Nd3 {[%emt 0:04:09]} (22... Nxb3 $2 23. Ra3 $18) 23. f4 {[%emt 0:00:05]} g5 {[%emt 0:03:18]} 24. Nd2 {[%emt 0:02:51] And now Ne4 would win.} gxf4 {[%emt 0:02:02]} 25. gxf4 {[%emt 0:00:02]} f6 {[%emt 0:00:31]} 26. Rd4 {[%emt 0:01:25]} Rg7+ {[%emt 0:00:10]} (26... fxe5 $2 {perishes.} 27. Rxd3 exf4 28. Kg2 $18) 27. Kf1 {[%emt 0:00:03] [#] Strongly threatening exf6.} Nxe5 {[%emt 0:00:24]} 28. Rd6 {[%emt 0:01:42]} (28. Re1 Nc6) 28... Ng6 {[%emt 0:03:35]} 29. Rxe6 {[%emt 0:02:24]} Nxf4 {[%emt 0:00:06]} 30. Re4 {[%emt 0:00:07]} Nd3 {[%emt 0:04:10]} 31. Nf3 {[%emt 0:00:54]} Ne5 {[%emt 0:01:05]} 32. Nxe5 {[%emt 0:00:45]} fxe5+ $15 {[%emt 0:00:05][%mdl 4096] Endgame. KRR-KRR} 33. Ke2 {[%emt 0:00:02]} Rf5 {[%emt 0:03:12]} 34. Kd3 {[%emt 0:00:30]} (34. a6 $11 {keeps the balance.}) 34... Rd7+ {[%emt 0:01:07]} 35. Kc4 {[%emt 0:00:36]} (35. Ke3 $15) 35... Kf7 $17 {[%emt 0:02:37]} 36. a6 {[%emt 0:00:43]} bxa6 {[%emt 0:00:21]} 37. Rxa6 {[%emt 0:00:25]} Rf4 {[%emt 0:00:08]} 38. Rxf4+ {[%emt 0:00:03]} exf4 {[%emt 0:00:06] KR-KR} 39. Rh6 $2 {[%emt 0:00:27][%mdl 8192] Now White is beyond hope.} (39. b4 $17) 39... Kg7 $19 {[%emt 0:00:13]} 40. Rh4 {[%emt 0:01:15]} Rf7 {[%emt 0:00:11] ( -> ...f3)} 41. Kd3 {[%emt 0:12:20] [#]} f3 $1 {[%emt 0:01:54] Black mates.} 42. Rg4+ {[%emt 0:00:03]} Kh6 {[%emt 0:00:04]} 43. Rg1 {[%emt 0:00:03]} f2 {[%emt 0:05:45]} 44. Rf1 {[%emt 0:00:01]} Kg5 {[%emt 0:00:06]} 45. Ke3 {[%emt 0:00:26]} Kg4 {[%emt 0:00:03]} 46. Rxf2 {[%emt 0:01:35]} Rxf2 {[%emt 0:00:06]} 47. Kxf2 {[%emt 0:00:02] KPP-KPP} Kf4 {[%emt 0:00:13]} 48. Ke2 {[%emt 0:07:16]} Ke4 {[%emt 0:00:40]} 49. h3 {[%emt 0:08:03]} Kf4 {[%emt 0:00:30]} 50. b4 {[%emt 0:02:41]} Ke4 {[%emt 0:04:25]} 51. h4 {[%emt 0:00:04]} h5 {[%emt 0:01:30]} 52. Kd2 {[%emt 0:03:01] [#]} Kd4 $1 {[%emt 0:00:04]} 53. Kc2 {[%emt 0:00:18]} Kc4 {[%emt 0:00:05] Weighted Error Value: White=0.51/Black=0.06 (flawless) .  Loses game:     	White=1     	---        Mistake:       	White=3     	---        Inaccurate:     	White=3     	Black=4      OK:         	White=10    	Black=10     Best:        	White=2     	Black=5      Strong:       	White=1     	---        Brilliant:      	---       	Black=1} 0-1

[Event "XTX Markets London Masters 2024"]
[Site "London"]
[Date "2024.11.29"]
[Round "1.11"]
[White "Barnaure, Vlad-Victor"]
[Black "Finn, Peter"]
[Result "1-0"]
[ECO "A14"]
[WhiteElo "2480"]
[BlackElo "2175"]
[Annotator "TA"]
[PlyCount "79"]
[EventDate "2024.11.28"]
[EventType "swiss"]
[EventCountry "ENG"]
[SourceTitle "playchess.com"]
[Source "ChessBase"]
[SourceQuality "1"]
[TimeControl "40/5400+30:1800+30"]

{[%evp 12,79,1,0,8,4,18,0,0,-11,0,0,-2,0,0,-22,25,13,26,22,18,0,6,17,156,0,43,13,16,12,108,92,166,169,190,181,312,338,437,346,381,377,818,835,874,839,1014,1012,1012,1009,2560,2251,1856,1015,1015,1015,1015,1015,1015,978,888,888,894,894,1449,888,29993,29994,29994,29995]} 1. c4 {[%emt 0:00:30]} Nf6 {[%emt 0:00:20]} 2. Nf3 {[%emt 0:00:00]} e6 {[%emt 0:00:52]} 3. g3 {[%emt 0:00:20]} d5 {[%emt 0:01:10]} 4. Bg2 {[%emt 0:00:22]} Be7 {[%emt 0:02:04]} 5. O-O {[%emt 0:00:15]} O-O {[%emt 0:00:06]} 6. b3 {[%emt 0:00:20]} d4 {[%emt 0:01:58]} 7. e3 {[%emt 0:00:45]} c5 {[%emt 0:01:03]} 8. exd4 {[%emt 0:02:36]} cxd4 {[%emt 0:00:10]} 9. d3 {[%emt 0:02:03]} Nc6 {[%emt 0:01:16] The position is equal.} 10. Re1 {[%emt 0:01:00][%cal Bf1e1,Be1e5,Be5b5][%mdl 32]} a5 {[%emt 0:06:27]} 11. Ne5 {[%emt 0:05:28]} Nxe5 {[%emt 0:09:20]} 12. Rxe5 {[%emt 0:00:07]} Qc7 {[%emt 0:09:06]} 13. Rb5 {[%emt 0:04:07]} e5 {[%emt 0:13:13] Wards off Bf4} (13... Nd7 $142) 14. Bg5 {[%emt 0:02:51]} h6 {[%emt 0:10:28]} 15. Bxf6 {[%emt 0:00:38]} Bxf6 {[%emt 0:00:04]} 16. Nd2 {[%emt 0:03:53]} Ra7 {[%emt 0:12:31]} 17. Qh5 {[%emt 0:19:09]} g6 {[%emt 0:12:40]} (17... Bg5 $11 18. Ne4 g6) 18. Qf3 $2 {[%emt 0:00:56]} (18. Qxh6 $16 {Hoping for Ne4.} Bg7 19. Qh4) 18... Bg7 {[%emt 0:01:14]} 19. Qd5 {[%emt 0:01:48]} Be6 {[%emt 0:09:58]} 20. Qc5 {[%emt 0:00:33]} Qb8 {[%emt 0:00:34]} (20... Qxc5 $11 {keeps the balance.} 21. Rxc5 Rc8) 21. Qb6 $16 {[%emt 0:01:55][%cal Oc4c5] White is much more active. Black is now going downhill.} (21. Rxa5 $2 b6 22. Rxa7 bxc5 $19) 21... a4 {[%emt 0:01:35]} (21... Bd7 $16 {was necessary.}) 22. b4 {[%emt 0:00:33]} Bd7 {[%emt 0:00:19] [#]} 23. Ra5 $36 {[%emt 0:00:14][%mdl 2048] Black is under strong pressure.} Rxa5 {[%emt 0:00:31]} (23... Ra6 $142 24. Rxa6 (24. Qxb7 Qxb7 25. Bxb7 Rb6 $16) 24... bxa6) 24. bxa5 $18 {[%emt 0:00:06]} (24. Qxa5 b6 25. Qa6 Bf5 $16) 24... Bc6 {[%emt 0:01:08]} 25. Bxc6 {[%emt 0:00:54]} bxc6 {[%emt 0:00:04]} 26. Rb1 {[%emt 0:00:06]} (26. Qxc6 Qb2 27. Rd1 Qc2 $17) 26... Qd6 {[%emt 0:02:24]} (26... Qxb6 27. Rxb6 (27. axb6 f5 $18) 27... Ra8) 27. a6 {[%emt 0:00:25]} Qa3 {[%emt 0:01:33]} 28. a7 {[%emt 0:02:16]} Qxd3 {[%emt 0:00:05]} 29. Qxc6 $1 {[%emt 0:00:09]} Qxd2 {[%emt 0:01:00]} 30. Rb8 {[%emt 0:00:19]} (30. a8=B $2 Qxa2 31. Rd1 Qc2 $19) (30. a8=R Qc2 31. Rab8 (31. Qxa4 $2 Qxb1+ 32. Kg2 Qb7+ 33. f3 Rxa8 $19) 31... e4 $16) 30... Qe1+ {[%emt 0:01:20]} 31. Kg2 {[%emt 0:00:07]} e4 {[%emt 0:00:12][%cal Be5e4,Be4e3,Be3e2,Be2e1,Be1g2][%mdl 32]} 32. Rxf8+ {[%emt 0:10:08]} (32. a8=R e3 33. Rxf8+ (33. Qxa4 Qxf2+ 34. Kh3 Qf1+ 35. Kg4 h5+ 36. Kh4 Bf6#) 33... Bxf8 34. fxe3 Qe2+ 35. Kh3 d3 $11) 32... Bxf8 {[%emt 0:00:09]} 33. a8=Q {[%emt 0:00:31][%cal Oc6c5] [#] Qc5! would kill now.} (33. a8=B $2 e3 34. fxe3 dxe3 $19) 33... e3 {[%emt 0:00:11]} 34. Qf6 {[%emt 0:01:02] Qd5 would now be deadly.} (34. Qcxa4 {leads to mate.} exf2) 34... e2 {[%emt 0:00:20]} 35. Qe8 {[%emt 0:00:22][%csl Gf6][%cal Re8f7]} (35. Qxd4 $2 {is the wrong capture.} Qf1+ 36. Kf3 Qh1+ (36... e1=B $2 37. Qad5 $18) (36... e1=Q 37. Qh8+ Kxh8 38. Qxf8+ Kh7 39. Qxf7+ Kh8 40. Qf8+ Kh7 41. Qf7+ Kh8 42. Qf8+ Kh7 43. Qf7+ $11) 37. Kxe2 Qxa8 $19) 35... Qf1+ {[%emt 0:00:35]} 36. Kf3 {[%emt 0:00:05][%csl Gf6][%cal Re8f7,Bg2f3,Bf3g4,Bg4h4,Bh4g5][%mdl 32]} e1=N+ {[%emt 0:00:11]} 37. Kg4 {[%emt 0:00:19][%csl Gf6][%cal Re8f7]} h5+ {[%emt 0:01:53]} 38. Kh4 {[%emt 0:03:31][%csl Gf6][%cal Re8f7]} Ng2+ {[%emt 0:00:05]} 39. Kg5 {[%emt 0:00:06][%csl Gf6][%cal Re8f7]} Qxc4 {[%emt 0:00:51]} 40. Qee5 {[%emt 0:00:06] Weighted Error Value: White=0.22 (precise) /Black=0.51.  Mistake:       	White=1     	Black=6      Inaccurate:     	White=2     	Black=1      OK:         	White=7     	Black=4      Best:        	White=1     	---} 1-0